Cogmind - Beta 13 @@@ ROGUE MODE // 2024.04.04 @ 05:12:31 Player: A Moose Result: Smashed by cave-in Performance ------------- Evolutions (1) 500 Regions Visited (3) 600 Robots Destroyed (33) 165 Value Destroyed (681) 681 Prototype IDs (3) 60 Alien Tech Used (0) 0 Bonus (0) 0 TOTAL SCORE: 2006 Bonus ------- None Cogmind --------- Core Integrity 0/400 Matter 30/300 Energy 280/280 System Corruption 9% Temperature Cool (16) Movement Treading (160) Location -9/Materials Parts ------- > --- POWER (1) -------- Cooled Ion Engine > --- PROPULSION (2) --- Improved Treads Improved Treads > --- UTILITY (4) ------ Small Storage Unit ECM Suite > --- WEAPON (2) ------- Beam Cannon Heavy Assault Rifle > --- INVENTORY (8) ---- Ion Engine Improved Treads Improved Heat Sink Signal Interpreter Medium Armor Plating Small Laser Grenade Launcher Mining Laser Peak State ------------ > --- POWER ------------ Cooled Ion Engine > --- PROPULSION ------- Improved Treads Improved Treads > --- UTILITY ---------- Small Storage Unit Visual Processing Unit ECM Suite Core Shielding > --- WEAPON ----------- Beam Cannon Heavy Assault Rifle > --- INVENTORY -------- Ion Engine Improved Treads Improved Heat Sink Signal Interpreter Medium Armor Plating Small Laser Grenade Launcher Mining Laser [Rating: 16] Favorites ----------- Power Light Ion Engine Engine Light Ion Engine Propulsion Light Treads Treads Light Treads Utility Small Storage Unit Device ECM Suite Storage Small Storage Unit Processor Visual Processing Unit Protection Core Shielding Weapon Assault Rifle Energy Cannon Beam Cannon Ballistic Gun Assault Rifle Launcher Grenade Launcher Special Weapon Mining Laser Build | -11 -10 -10 -9 ------- Run | Yrd Mat Min Mat Slots Evolved 2 | . . . 2 Power . | . . . . Propulsion . | . . . . Utility 2 | . . . 2 Weapon . | . . . . Parts Attached 27 | 5 2 . 20 Power 4 | . 1 . 3 Engine 4 | . 1 . 3 Core . | . . . . Reactor . | . . . . Propulsion 6 | 2 . . 4 Treads 6 | 2 . . 4 Leg . | . . . . Wheel . | . . . . Hover . | . . . . Flight . | . . . . Utility 5 | 1 1 . 3 Device 1 | . . . 1 Storage 2 | 1 . . 1 Processor 1 | . 1 . . Hackware . | . . . . Protection 1 | . . . 1 Artifact . | . . . . Weapon 12 | 2 . . 10 Energy Gun . | . . . . Energy Cannon 2 | . . . 2 Ballistic Gun 4 | 2 . . 2 Ballistic Cannon . | . . . . Launcher 5 | . . . 5 Special Weapon 1 | . . . 1 Impact Weapon . | . . . . Slashing Weapon . | . . . . Piercing Weapon . | . . . . Special Melee Weapon . | . . . . Unidentified Prototypes 1 | . . . 1 Parts Lost 9 | . . . 9 Power 1 | . . . 1 Propulsion 2 | . . . 2 Utility 3 | . . . 3 Weapon 3 | . . . 3 Highest Loss Streak 4 | . . . 4 To Critical Strikes . | . . . . Average Slot Usage (%) 95 | . 86 100 92 Engine 11 | . 9 14 8 Treads 25 | . 28 28 19 Device 3 | . . . 11 Storage 15 | . 14 14 19 Processor 11 | . 5 14 11 Energy Cannon 1 | . . . 3 Ballistic Gun 22 | . 28 28 11 Launcher 1 | . . . 3 Naked Turns . | . . . . Heaviest Build 25 | 9 12 12 25 Greatest Support 46 | 40 40 40 46 Greatest Overweight (x) 5 | . . . 5 Average Overweight (x) . | . . . . Largest Inventory Capacity 8 | 8 8 8 8 Average Capacity 7 | 6 8 8 8 Most Carried 8 | 5 5 6 8 Average Carried 5 | 1 3 5 6 Final Capacity 8 | 8 8 8 8 Final Carried 8 | 1 5 6 8 Class Distribution -------------------- 100% | Mutant Dominant Class ---------------- Mutant | -10/Materials Mutant | -10/Mines Mutant | -9/Materials Resources | -11 -10 -10 -9 ----------- Run | Yrd Mat Min Mat Matter Collected 579 | 227 91 61 200 Remotely . | . . . . Salvage Created 694 | . 117 51 526 Parts 54 | . 9 5 40 Haulers Intercepted 2 | . . . 2 Recyclers Shooed 3 | . . . 3 Parts Field Recycled . | . . . . Retrieved Matter . | . . . . Parts Self-Destructed . | . . . . Prevented . | . . . . Kills | -11 -10 -10 -9 ------- Run | Yrd Mat Min Mat Combat Hostiles Destroyed 21 | . 2 3 16 Guns 5 | . 2 3 . Cannons 1 | . . . 1 AOE 15 | . . . 15 Classes Destroyed 10 | . 2 1 7 Worker 1 | . . . 1 Builder 2 | . . . 2 Tunneler 1 | . . . 1 Hauler 2 | . . . 2 Recycler 3 | . . . 3 Watcher 3 | . 1 . 2 Swarmer 10 | . . 3 7 Grunt 7 | . 2 . 5 Duelist 1 | . . . 1 Sentry 3 | . . . 3 Best Kill Streak 10 | . 2 3 10 Combat Bots Only 5 | . 2 3 5 Max Kills in Single Turn 3 | . 1 1 3 Gunslinging . | . . . . Exploded 3 | . . . 3 Melee . | . . . . Uniques/NPCs Destroyed . | . . . . Combat | -11 -10 -10 -9 -------- Run | Yrd Mat Min Mat Hostile Shots Fired 142 | . 7 19 116 Missed 36 | . 1 2 33 Damage Taken 1804 | . 130 132 1542 Core 454 | . . 49 405 Absorbed by Shields . | . . . . Core Remaining (%) 90 | 100 . 80 . Volleys Fired 51 | . 9 8 34 Largest 2 | . 2 2 2 Hottest 83 | . 40 40 83 Shots Fired 91 | . 18 16 57 Gun 56 | . 18 16 22 Cannon 11 | . . . 11 Launcher 24 | . . . 24 Special . | . . . . Kinetic 56 | . 18 16 22 Thermal 11 | . . . 11 Explosive 24 | . . . 24 Electromagnetic . | . . . . Robot Hit Streak 7 | . 5 4 7 Robot Miss Streak 11 | . 2 11 3 Penetration Max . | . . . . Secondary Targets . | . . . . Shots Hit Robots 48 | . 11 5 32 Core Hits 45 | . 5 3 37 Critical Kills 1 | . . . 1 Critical Parts Destroyed . | . . . . Critical Strikes 1 | . . . 1 Meltdown 1 | . . . 1 Melee Attacks . | . . . . Impact . | . . . . Slashing . | . . . . Piercing . | . . . . Sneak Attacks . | . . . . Combat Hostiles . | . . . . Follow-up Attacks . | . . . . Damage Inflicted 2228 | . 146 57 2025 Guns 371 | . 146 57 168 Cannons 121 | . . . 121 Explosions 1736 | . . . 1736 Melee . | . . . . Ramming . | . . . . Kinetic 371 | . 146 57 168 Thermal 121 | . . . 121 Explosive 1736 | . . . 1736 Electromagnetic . | . . . . Impact . | . . . . Slashing . | . . . . Piercing . | . . . . Highest Corruption 4 | . 1 1 4 Average Corruption 1 | . 1 1 4 Corruption Purged . | . . . . Corruption Blocked . | . . . . Effects 12 | . 3 6 3 Message Errors 2 | . 1 1 . Matter Fused 2 | . . 1 1 Heat Flow Errors 2 | . 2 . . Energy Discharges 1 | . . 1 . Data Loss (minor) 2 | . . 1 1 Data Loss (major) 2 | . . 1 1 Alerts 1 | . . 1 . Overload Shots . | . . . . Overflow Damage 65 | . . . 65 Projectiles 12 | . . . 12 Explosions 53 | . . . 53 Melee . | . . . . Knockbacks . | . . . . Impact . | . . . . Kinetic . | . . . . Secondary . | . . . . Self-Inflicted Damage 135 | . . . 135 Shots 7 | . . . 7 Rammed . | . . . . Targets Rammed . | . . . . Kicked . | . . . . Crushed . | . . . . Highest Temperature 260 | . 260 . 29 Average Temperature 47 | . 106 . 11 Received Heat Transfer 360 | . 48 . 312 Siege Activations . | . . . . Robots Corrupted . | . . . . Combat Hostiles . | . . . . Parts Fried . | . . . . Impact Corruptions . | . . . . Robots Melted 1 | . . . 1 Combat Hostiles . | . . . . Parts Melted 2 | . . . 2 Heat Transferred 259 | . . . 259 Parts Sabotaged . | . . . . Parts Stolen . | . . . . Parts Stripped . | . . . . Power Chain Reactions . | . . . . Alert | -11 -10 -10 -9 ------- Run | Yrd Mat Min Mat Peak Influence 441 | . 99 108 441 Initial 38 | . . 38 . Average 81 | . 53 33 173 Maximum Alert Level 2 | . . . 2 Low Security (%) 88 | 100 100 100 64 Level 1 5 | . . . 18 Level 2 5 | . . . 17 Level 3 . | . . . . Level 4 . | . . . . Level 5 . | . . . . High Security . | . . . . Max Security . | . . . . Squads Dispatched 2 | . . . 2 Investigation . | . . . . Extermination . | . . . . Reinforcement 2 | . . . 2 Assault . | . . . . Garrison . | . . . . Intercept . | . . . . Searches Triggered . | . . . . Construction Impeded . | . . . . Haulers Reinforced . | . . . . Active Scanning Responses . | . . . . Cargo Convoy Interrupts . | . . . . Stealth | -11 -10 -10 -9 --------- Run | Yrd Mat Min Mat Distress Signals 3 | . 1 . 2 Communications Jammed . | . . . . Distress Signals . | . . . . Times Spotted 32 | . 6 3 23 Peak Tracking Total 6 | . 3 3 6 Tactical Retreats 1 | . . . 1 Traps | -11 -10 -10 -9 ------- Run | Yrd Mat Min Mat Traps Triggered 2 | . 1 . 1 Indirectly . | . . . . Trap Hack Attempts . | . . . . Triggered . | . . . . Disarmed . | . . . . Reprogrammed . | . . . . Reused . | . . . . Traps Extracted . | . . . . Installed . | . . . . Triggered . | . . . . Machines | -11 -10 -10 -9 ---------- Run | Yrd Mat Min Mat Machines Disabled 6 | . . . 6 Max in Single Turn 2 | . . . 2 Machines Repaired . | . . . . Machines Dismantled . | . . . . Machines Sabotaged . | . . . . Overloaded Fab Kills . | . . . . Hacking | -11 -10 -10 -9 --------- Run | Yrd Mat Min Mat Machines Accessed 5 | . 4 . 1 Terminals 4 | . 4 . . Fabricators . | . . . . Repair Stations . | . . . . Recycling Units . | . . . . Scanalyzers 1 | . . . 1 Garrison Access . | . . . . Total Hacks 16 | . 10 . 6 Successful 11 | . 5 . 6 Failed 5 | . 5 . . Catastrophic . | . . . . Database Lockouts . | . . . . Manual . | . . . . Terminals 10 | . 10 . . Fabricators . | . . . . Repair Stations . | . . . . Recycling Units . | . . . . Scanalyzers 6 | . . . 6 Garrison Access . | . . . . Terminal Hacks 5 | . 5 . . Prototype ID Bank 1 | . 1 . . Branch Access Points 1 | . 1 . . Alert Level 1 | . 1 . . Investigation Status 1 | . 1 . . Zone Layout 1 | . 1 . . Fabricator Hacks . | . . . . Repair Station Hacks . | . . . . Recycling Unit Hacks . | . . . . Scanalyzer 6 | . . . 6 Insert Component 3 | . . . 3 Analyze 3 | . . . 3 Garrison Access Hacks . | . . . . Unauthorized Hacks . | . . . . Terminals . | . . . . Fabricators . | . . . . Repair Stations . | . . . . Recycling Units . | . . . . Scanalyzers . | . . . . Garrison Access . | . . . . Data Cores Recovered . | . . . . Used . | . . . . Hacking Detections 1 | . 1 . . Full Trace Events . | . . . . Feedback Events . | . . . . Feedback Blocked . | . . . . Robot Schematics Acquired . | . . . . Robots Built . | . . . . Authchips . | . . . . Time . | . . . . Total Robot Build Rating . | . . . . Part Schematics Acquired 3 | . . . 3 Parts Built . | . . . . Authchips . | . . . . Time . | . . . . Total Part Build Rating . | . . . . Parts Repaired . | . . . . Time . | . . . . Parts Recycled . | . . . . Recycled Matter . | . . . . Retrieved Matter . | . . . . Retrieved Components . | . . . . Parts Scanalyzed 3 | . . . 3 Part Schematics Acquired 3 | . . . 3 Parts Damaged . | . . . . Bothacking | -11 -10 -10 -9 ------------ Run | Yrd Mat Min Mat Used RIF Installer . | . . . . Robots Hacked . | . . . . Non-combat . | . . . . Combat . | . . . . Robot Hacks Applied . | . . . . Relay Couplers Released . | . . . . Fabnet Peak Effective % . | . . . . Robots Rewired . | . . . . Allies Hacked . | . . . . Hacks Repelled . | . . . . Allies | -11 -10 -10 -9 -------- Run | Yrd Mat Min Mat Total Allies . | . . . . Largest Group . | . . . . Highest-Rated Group . | . . . . Highest-Rated Ally . | . . . . Total Orders . | . . . . Ally Attacks . | . . . . Total Damage . | . . . . Kills . | . . . . Allies Corrupted . | . . . . Allies Melted . | . . . . Intel | -11 -10 -10 -9 ------- Run | Yrd Mat Min Mat Robot Analysis Total . | . . . . Derelict Logs Recovered 3 | . . 3 . Drone Launches . | . . . . Drone Recoveries . | . . . . Exploration | -11 -10 -10 -9 ------------- Run | Yrd Mat Min Mat Turns Passed 2317 | 65 339 1159 754 Spaces Moved 1223 | 51 183 616 373 Core 47 | 24 . . 23 Treads 1176 | 27 183 616 350 Legs . | . . . . Wheels . | . . . . Hover . | . . . . Flight . | . . . . Fastest Speed 50 | 50 160 160 160 Average Speed 159 | 108 160 160 167 Slowest Speed 300 | 160 160 160 300 Overloaded Moves . | . . . . Propulsion Burnouts . | . . . . Robots Hopped . | . . . . Cave-ins Triggered 2 | . . . 2 Exploration Rate (%) 43 | 4 41 98 31 Regions Visited 3 Branch Regions 1 Pre-discovered Areas 2 | . . 2 . Known Exits Taken 1 | . 1 . . Unknown Exits Taken 2 | 1 . 1 . Scrap Searched 2 | . . 2 . Spaces Dug . | . . . . Terrain Destroyed 104 | . . . 104 Melee . | . . . . Projectile . | . . . . AOE 104 | . . . 104 Terrain Rammed . | . . . . Walls Destroyed . | . . . . Machines Disabled . | . . . . Actions | -11 -10 -10 -9 --------- Run | Yrd Mat Min Mat Total 1492 | 61 211 774 446 Wait 168 | . 12 150 6 Move 1220 | 50 182 615 373 Hop . | . . . . Pick Up 21 | 6 6 1 8 Fast Attach 5 | . . . 5 Attach 13 | 5 2 . 6 Detach . | . . . . Swap 9 | . . . 9 Drop 5 | . . . 5 Fire 51 | . 9 8 34 Melee . | . . . . Ram . | . . . . Kick . | . . . . Crush . | . . . . Escape Stasis . | . . . . Rewire . | . . . . Trap . | . . . . Miscellaneous . | . . . . Route ------- -11/Scrapyard -10/Materials -10/Mines (discovered 2 exits: *Mat x2) -9/Materials (discovered 1 exit: Mat) History --------- Turn | Location | Event 9 | -11/Scrapyard | Discovered new exit (range 16) 66 | -11/Scrapyard | Entered Materials 256 | -10/Materials | Identified exit to Mines 301 | -10/Materials | Build established: Mutant 405 | -10/Materials | Entered Mines 477 | -10/Mines | Met a Derelict bent on vengeance 479 | -10/Mines | Discovered new exit (range 10) 638 | -10/Mines | Learned Materials interactive machine intel 645 | -10/Mines | Learned location of Zion (-7) 660 | -10/Mines | Assembled infested the area 665 | -10/Mines | Assisted by a Guerilla fighting off Assembled 749 | -10/Mines | Learned location of Storage (-7) 1061 | -10/Mines | Learned location of 1 exit from Materials 1217 | -10/Mines | Discovered new exit (range 8) 1564 | -10/Mines | Entered Materials 1564 | -9/Materials | Evolved 2 slots: Utility x2 1565 | -9/Materials | Identified exit to Materials 1566 | -9/Materials | Loaded intel: 15 interactive machine locations 1974 | -9/Materials | Core integrity fell below 50% 1987 | -9/Materials | Lost 4 parts (1p2n1w) 2033 | -9/Materials | Crushed by falling debris 2091 | -9/Materials | Core integrity fell below 20% 2319 | -9/Materials | Crushed by falling debris 2319 | -9/Materials | Smashed by cave-in Last Messages --------------- Ready to analyze. >>Scanalyze Scanning: Signal Interpreter... Schematic downloaded. U-05 Engineer lays Concrete. Dropped Imp. Treads. Destroyed Lgt. Ion Engine. W-16 Scout destroyed. System corrupted: Substantial component data lost. K-01 Serf collects debris. K-01 Serf cleans the Matter Pump. U-05 Engineer lays Concrete. K-01 Serf cleans the Matter Pump. The unstable cave ceiling collapses. Crushed by falling debris. Visual Processing Unit destroyed. System corrupted by crushing effect (+2). Core Shielding destroyed. System corrupted by crushing effect (+3). Map ----- +----------------------------------------------------+ | ??????# #" #???????????????# # != # #??????? | | ??????# #T #???????????????# #?? # #??????? | | ??????# #" #?""????????????# #????# #??????? | | ??????# #" #?"Y????????????# ##??## #??????? | | ??????# # #?""??????????###+# ## # #??????? | | ??????# + #?????????????# #??????? | | ??######+#######?????????? ??# """ #??????? | | ??# #????????###+### """" ######## | | ??# #????????# # "" | | ??# #????????# # | | ??# """ """ #????????# # "" | | ??# """"""""" #????????? !# "" # #######+ | | ??# """"" " #????????? # """ #??????? | | ??# #?????????# ## % #??????? | | ??#############?????????# ########+# ##?????? | | ????????!"!?????????????# ## # #?????? | | ????????!"!"??????????### ## "S ##?????? | | ????????? ##+#######T# # """ #?????? | | ?????????? ## " #?????? | | ???????????? #?????? | | ????????????? """ "" # # ###???? | | ???????????????# """ #######+### # #???? | | ???????????????# """ ##???? | | ???????????????# k #????? | | ???????????????# ak = #????? | | ???????????????# #"T"# @##+################### | | ???????????????# ??#"""## == + | | ???????????????????#######= [ #### ############? | | ?????????????????????????# =[ ####[#### #??????? | | ????????????????????????## [ | #### #???##??????? | | ????????????????????????# #??# #???????????? | | ????????????????????????## #??#[#???????????? | | ?????????????????????############??#=#???????????? | | ?????????????????????? #???# #???????????? | | ?????????????????????? """ """ ##### #?#######???? | | ???????????????????? """ """!+ #?# #???? | | ???????????????????# """ " %!##### #?# """ #???? | | ???????????????????# !! #???# #?# """ #???? | | ???????????????????# !!#?### ### """ #???? | | ???????????????????# ! #?# # """ #???? | | ???????????????????#############?# # """ #???? | | ?????????????????????????????????#= + #???? | | ?????????????????????????????????# # #???? | | ?????????????????????????????????# # #???? | | ????????????????????????????????####"### #???? | | ????????????????????????????????#! # #???? | | ????????????????????????????????# # #???? | | ????????????????????????????????#* "" #######???? | | ????????????????????????????????# """ #?????????? | | ????????????????????????????????# S" #?????????? | +----------------------------------------------------+ Best States ------------- Heat Dissipation 28 Energy Generation 14 Energy Capacity 280 Matter Stores 300 Matter Capacity 300 Sight Range 18 Terrain Scan Density 10 ECM Strength 1 Core Shielding 20 Evasion (%) 50 Recoil Reduction 2 Item Schematics ----------------- Grenade Launcher | -9/Materials | Scanalyzed Med. Armor Plating | -9/Materials | Scanalyzed Signal Interpreter | -9/Materials | Scanalyzed Robot Schematics ------------------ None Fabricated ------------ Nothing Alien Tech Used ----------------- None Achievements -------------- Unlikely Earthworm Challenges ------------ None Game ------ Seed ThiefMappingNukerbomber Manual? 0 Play Time 00:21:31 Cumulative 15.2 hours Start 2024.04.04 @ 03:50:27 End 2024.04.04 @ 05:12:31 Sessions 3 Manual Loads 0 Difficulty Rogue Special Mode None Game No. 15 Rogue 6 Adventurer 9 Explorer 0 Win Type - Total 0 Types 0/0/0/0/0/0/0/0/0 Lore% 18 Gallery% 27 Achievement% 23 Wizard Run 0 Options --------- Layout 1 ASCII 0 Keyboard 0 Movement Numpad Keybinds 0 Fullscreen 1 Font 24/Smallcaps Map View 50x35 Zoom Use 0% Tactical HUD 0 Map Filters NONE Filters NONE Steam 1 RUN: 2ccffeb9-8d6b-4cfe-b4ca-25e17ac07b3b